bitfinex-derivatives/quotes_ETHF0:USTF0_20250804
["timestamp","ask_amount","ask_price","bid_price","bid_amount"]
[1754346253397,1.2357,3723.3,3723.2,3.74492]
[1754346253999,19.4901,3723.5,3723.4,1.3778]
[1754346254308,18.65,3723.5,3723.4,1.7658]
[1754346254599,19.0966,3723.5,3723.4,1.7658]
[1754346254804,19.8857,3723.5,3723.4,1.7658]
[1754346255206,18.65,3723.5,3723.4,1.7658]
[1754346255504,18.652,3723.9,3723.8,1.76574]
[1754346256310,19.0986,3723.9,3723.8,1.76574]
[1754346256703,19.4921,3723.9,3723.8,1.76574]
[1754346257813,18.652,3723.9,3723.8,1.76574]
[1754346259011,0.53701,3724.1,3723.9,0.53702]
[1754346259307,18.653,3724.0,3723.9,0.92502]
[1754346259699,38.65,3724.4,3724.3,1.2287]
[1754346260005,58.1431,3724.4,3724.3,1.2287]
[1754346260203,57.303,3724.4,3724.3,1.2287]
[1754346261004,58.5387,3724.4,3724.3,1.2287]
[1754346262209,19.8887,3724.4,3724.3,1.2287]
[1754346263606,20.6752,3724.4,3724.3,1.4858]
[1754346263910,0.7865,3723.8,3723.7,1.1993]
[1754346264206,0.53708,3723.6,3723.5,0.53708]
[1754346264411,0.53708,3723.6,3723.3,0.4611]
[1754346264412,1.3236,3723.5,3723.4,0.53709]
[1754346264605,2.0222,3723.5,3723.4,0.53709]
[1754346264909,2.0222,3723.5,3723.4,2.57709]
[1754346265307,18.652,3723.6,3723.5,1.2287]
[1754346265608,18.652,3723.6,3723.5,2.04]
[1754346267509,18.8978,3723.6,3723.5,2.04]
[1754346268305,19.1992,3723.6,3723.5,2.04]
[1754346268508,18.652,3723.6,3723.5,2.04]
[1754346270008,1.34223,3724.9,3723.2,4.55061]
[1754346270009,3.2078,3725.0,3724.5,2.57694]
[1754346270211,18.80582944,3724.9,3724.8,0.5369]
[1754346270513,20.43242944,3724.9,3724.8,2.5769]
[1754346270712,20.2786,3724.9,3724.8,2.5769]
[1754346271015,20.82801223,3724.9,3724.8,2.5769]
[1754346271215,20.82802096,3724.9,3724.8,2.5769]
[1754346271416,20.82802096,3724.9,3724.8,1.7362]
[1754346272310,20.6742,3724.9,3724.8,1.7362]
[1754346272512,20.6742,3724.9,3724.8,2.5601]
[1754346273311,3.2078,3725.4,3725.3,0.53683]
[1754346273620,23.98556233,3725.4,3725.3,2.51423]
[1754346273814,18.80386233,3725.4,3725.3,2.51423]
[1754346274008,19.4508,3725.4,3725.3,2.51423]
[1754346274315,20.6239,3725.4,3725.3,2.51423]
[1754346274713,20.77775086,3725.4,3725.3,2.06783]
[1754346275006,19.60465086,3725.4,3725.3,2.51423]
[1754346275206,19.34695086,3725.4,3725.3,2.51423]
[1754346275417,19.04085086,3725.4,3725.3,2.51423]
[1754346277113,19.04091299,3725.4,3725.3,2.51423]
[1754346277711,20.77781299,3725.4,3725.3,2.51423]
[1754346278111,20.77781299,3725.4,3725.3,2.06783]
[1754346278508,20.77781299,3725.4,3725.3,1.33313]
[1754346278918,20.77781299,3725.4,3725.3,2.51423]
[1754346281218,20.6239,3725.4,3725.3,2.51423]
[1754346281814,20.6239,3725.4,3725.3,0.53683]
[1754346282019,20.6239,3725.4,3725.3,1.39793]
[1754346282221,20.6239,3725.4,3725.3,2.51423]
[1754346282618,20.6239,3725.4,3725.3,2.06783]
[1754346282919,20.7787799,3725.4,3725.3,1.33313]
[1754346283121,20.7787799,3725.4,3725.3,2.15703]
[1754346283316,20.7787799,3725.4,3725.3,2.51423]
[1754346283821,18.65,3725.4,3725.3,2.51423]
[1754346284221,18.887,3725.4,3725.3,2.51423]
[1754346284424,19.1931,3725.4,3725.3,2.51423]
[1754346284620,19.8881,3725.4,3725.3,2.51423]
[1754346285121,20.6239,3725.4,3725.3,2.51423]
[1754346287417,0.53676,3725.8,3725.3,2.51423]
[1754346287620,3.2078,3725.9,3725.8,1.9774]
[1754346287816,39.8321,3726.6,3726.5,1.33295]
[1754346288018,58.62874932,3726.6,3726.5,0.53665]
[1754346288619,58.62874932,3726.6,3726.5,1.69015]
[1754346288923,39.98674932,3726.6,3726.5,2.06765]
[1754346289219,18.642,3726.6,3726.5,5.72185]
[1754346289625,18.642,3726.6,3726.5,2.51405]
[1754346290326,0.3061,3726.5,3725.9,3.2078]
[1754346290527,1.9739,3726.0,3725.9,4.28614]
[1754346290826,1.9739,3726.0,3725.9,5.72194]
[1754346291016,1.9739,3726.0,3725.9,2.06774]
[1754346291222,18.64,3726.0,3725.9,0.91424]
[1754346291424,19.4408,3726.0,3725.9,2.15694]
[1754346291729,19.8781,3726.0,3725.9,2.51414]
[1754346291918,0.53663,3726.7,3726.0,1.34182]
[1754346292228,0.237,3726.7,3726.6,1.9774]
[1754346292423,18.876,3726.7,3726.6,2.51404]
[1754346292624,3.2078,3726.9,3726.8,1.9774]
[1754346292625,3.4448,3726.9,3726.8,1.9774]
[1754346292820,20.6129,3726.9,3726.8,1.9774]
[1754346293028,20.6129,3726.9,3726.8,1.531]
[1754346293337,20.6129,3726.9,3726.8,1.1535]
[1754346293629,20.6129,3726.9,3726.8,0.7963]
[1754346294020,2.12491,3726.8,3726.7,0.53661]
[1754346294219,0.7358,3726.7,3726.5,0.53664]
[1754346294529,20.6109,3726.6,3726.5,2.51404]
[1754346294729,20.6109,3726.6,3726.5,1.69014]
[1754346295126,20.6109,3726.6,3726.5,2.06764]
[1754346295425,19.4378,3726.6,3726.5,2.51404]
[1754346296625,18.637,3726.6,3726.5,2.51404]
[1754346296825,3.2078,3726.8,3726.7,2.51403]
[1754346297027,21.8438,3726.8,3726.7,2.51403]
[1754346297228,18.636,3726.8,3726.7,2.51403]
[1754346298131,1.0,3727.0,3726.9,2.514]
[1754346300329,0.237,3726.7,3726.6,3.2078]
[1754346300624,0.237,3726.7,3726.3,0.7347]
[1754346300625,1.4792,3726.3,3726.2,0.53669]
[1754346300829,0.5431,3726.3,3726.2,0.53669]
[1754346301025,0.8008,3726.7,3726.6,2.06764]
[1754346301222,18.634,3726.7,3726.6,2.51404]
[1754346301423,0.769,3726.5,3726.4,0.53666]
[1754346301628,1.9579,3726.4,3726.3,0.53667]
[1754346302029,0.769,3726.7,3726.6,1.32684]
[1754346302231,0.769,3726.7,3726.6,5.69154]
[1754346302530,18.634,3726.8,3726.6,5.69154]
[1754346302731,1.2488,3727.0,3726.9,2.4837]
[1754346302931,1.0,3727.0,3726.9,2.4837]
[1754346305030,20.2253,3727.8,3727.7,1.02608]
[1754346305231,20.5919,3727.8,3727.7,1.39938]
[1754346305428,20.5919,3727.8,3727.7,1.69998]
[1754346305633,19.403,3727.8,3727.7,2.48358]
[1754346306230,19.1625,3727.8,3727.7,2.48358]
[1754346306632,20.5919,3727.8,3727.7,1.69998]
[1754346306935,20.5919,3727.8,3727.7,0.77348]
[1754346307333,0.53643,3728.1,3727.9,0.53645]
[1754346307533,1.9579,3728.0,3727.9,0.53645]
[1754346307733,0.2488,3727.8,3727.7,0.53648]
[1754346307937,1.9579,3727.8,3727.6,3.74429]
[1754346308238,1.9579,3727.5,3727.4,2.48363]
[1754346308927,1.9579,3727.5,3727.4,0.53653]
[1754346309132,1.9579,3727.5,3727.2,3.2078]
[1754346309331,1.9579,3727.3,3727.2,3.2078]
[1754346309528,19.0078,3727.7,3727.5,2.11031]
[1754346309730,19.0078,3727.7,3727.5,1.32671]
[1754346309937,1.9579,3727.6,3727.5,0.53651]
[1754346310141,1.2155,3727.6,3727.5,2.48361]
[1754346310439,0.5285,3727.6,3727.5,2.48361]
[1754346310925,1.1889,3727.6,3727.2,3.2078]
[1754346311131,0.2797,3727.6,3727.5,2.48361]
[1754346311328,1.9579,3727.9,3727.8,2.48357]
[1754346311536,20.5879,3727.9,3727.8,2.48357]
[1754346311738,20.5879,3727.9,3727.8,1.69997]
[1754346311938,20.5879,3727.9,3727.8,1.32667]
[1754346312138,20.5879,3727.9,3727.8,2.48357]
[1754346313640,3.2078,3729.1,3727.9,1.34112]
[1754346313939,1.4894,3729.0,3728.9,1.69981]
[1754346314236,1.4894,3729.0,3728.9,2.48341]
[1754346315039,0.747,3728.8,3728.3,3.2078]
[1754346315240,23.19553,3729.1,3727.9,5.69135]
[1754346315241,1.2317,3728.0,3727.9,5.69135]
[1754346315934,0.8651,3728.0,3727.9,5.69135]
[1754346316137,1.6505,3728.0,3727.9,4.7949]
[1754346316340,1.6505,3727.9,3727.8,0.53646]
[1754346316943,1.6505,3727.6,3727.5,5.33141]
[1754346317142,1.6505,3727.6,3727.5,1.32671]
[1754346317338,0.747,3727.6,3727.4,0.53652]
[1754346317544,1.6505,3727.2,3727.1,3.2078]
[1754346317737,1.6505,3727.2,3727.1,3.74437]
[1754346318438,1.6505,3727.2,3727.1,4.53457]
[1754346318642,1.6505,3727.2,3727.1,5.69147]
[1754346319348,1.6505,3727.2,3727.1,3.74437]
[1754346319839,1.6505,3727.4,3727.3,0.53654]
[1754346321339,18.648,3727.5,3727.3,0.53654]
[1754346321649,18.648,3727.5,3727.4,1.9471]
[1754346322145,18.8968,3727.5,3727.4,1.9471]
[1754346322342,0.747,3727.5,3727.4,0.3006]
[1754346322644,1.6505,3727.4,3727.3,0.53654]
[1754346322944,1.6505,3727.4,3727.3,1.14684]
[1754346323146,1.6505,3727.4,3727.3,0.53654]
[1754346324143,1.6505,3727.3,3727.2,0.53655]
[1754346324847,1.6505,3727.3,3727.2,2.48365]
[1754346325843,1.6505,3727.3,3727.2,0.53655]
[1754346327745,19.17653,3727.4,3726.3,3.74447]
[1754346327746,0.2577,3726.4,3726.3,3.74447]
[1754346327944,1.6505,3726.0,3725.9,5.33164]
[1754346328150,1.6505,3726.0,3725.5,1.342]
[1754346328151,0.3758,3725.9,3725.8,0.53675]
[1754346328350,0.9035,3725.9,3725.8,0.53675]
[1754346328540,0.9035,3725.8,3725.7,0.53676]
[1754346328745,1.44027,3725.7,3725.6,0.53678]
[1754346328949,0.53677,3725.7,3725.5,0.53679]
[1754346329150,19.5475,3725.6,3725.5,0.53679]
[1754346330450,0.9035,3725.5,3725.4,3.2078]
[1754346330648,0.9035,3725.2,3725.1,0.91016]
[1754346330950,19.5435,3725.2,3725.1,0.91016]
[1754346331150,20.2905,3725.2,3725.1,0.91016]
[1754346331345,20.2905,3725.2,3725.1,0.3733]
[1754346331546,0.5248,3726.1,3725.6,0.53678]
[1754346331746,0.8523,3725.7,3725.6,2.48578]
[1754346331946,1.6325,3725.2,3725.1,1.61976]
[1754346332252,18.639,3725.2,3725.1,2.48586]
[1754346333042,0.4898,3725.7,3725.6,1.07578]
[1754346333250,20.0159,3725.7,3725.6,1.949]
[1754346333451,20.2755,3725.7,3725.6,1.949]
[1754346333750,0.1623,3725.2,3725.0,4.0274]
[1754346334050,1.6325,3725.0,3724.9,1.07589]
[1754346334247,1.6325,3725.0,3724.9,1.51759]
[1754346334447,1.6325,3725.0,3724.9,2.10799]
[1754346334647,1.6325,3725.0,3724.9,2.48589]
[1754346335052,1.2742,3725.0,3724.9,2.48589]
[1754346335252,1.0146,3725.0,3724.9,2.48589]
[1754346336252,18.879,3725.2,3725.1,1.31176]
[1754346336451,19.7621,3725.2,3725.1,2.48586]
[1754346336650,0.53686,3725.1,3725.0,0.53686]
[1754346336847,2.16936,3725.1,3725.0,0.53686]
[1754346337048,1.6325,3725.1,3725.0,1.31176]
[1754346337351,1.6325,3725.1,3725.0,2.48586]
[1754346338152,0.4898,3725.1,3725.0,2.48586]
[1754346338752,1.6325,3725.1,3725.0,2.48586]
[1754346338942,1.6325,3725.1,3725.0,1.31176]
[1754346339146,1.6325,3725.1,3725.0,0.53686]
[1754346339951,1.6325,3725.1,3725.0,0.82356]
[1754346340245,1.2742,3725.1,3725.0,2.48586]
[1754346340451,0.4898,3725.1,3725.0,2.48586]
[1754346340753,0.24,3725.1,3725.0,2.48586]
[1754346342949,18.639,3725.2,3725.0,2.48586]
[1754346343144,1.0146,3725.3,3725.2,1.949]
[1754346343348,1.0146,3725.3,3724.8,1.34223]
[1754346343349,3.2078,3725.8,3725.7,2.48577]
[1754346343649,0.8831,3725.7,3725.2,0.8196]
[1754346343842,0.8831,3725.7,3724.8,0.3779]
[1754346343843,1.03646,3725.1,3724.8,0.3779]
[1754346344048,1.6325,3724.9,3724.8,2.4859]
[1754346344449,1.6325,3724.9,3724.8,1.949]
[1754346344759,1.3729,3724.9,3724.8,0.53689]
[1754346345052,1.3729,3724.5,3724.4,1.31186]
[1754346345261,18.638,3724.6,3724.4,2.48596]
[1754346345556,3.2078,3725.0,3724.6,1.34233]
[1754346345757,1.2742,3725.3,3725.2,0.53683]
[1754346346060,1.28626,3725.2,3725.0,0.53686]
[1754346346358,1.6325,3725.1,3725.0,0.53686]
[1754346346554,1.81107,3725.0,3724.9,0.53688]
[1754346346755,2.16937,3725.0,3724.9,0.53688]
[1754346346957,1.6325,3725.0,3724.9,0.53688]
[1754346348754,0.24,3725.0,3724.9,1.07588]
[1754346348959,20.2705,3725.3,3725.2,0.2867]
[1754346349160,20.2705,3725.3,3725.1,0.53685]
[1754346349161,0.7494,3725.2,3725.1,1.07585]
[1754346349362,1.6325,3725.2,3725.1,2.48585]
[1754346349659,0.8523,3725.2,3725.1,2.48585]
[1754346349860,3.2078,3725.4,3725.3,2.48583]
[1754346350056,18.639,3725.4,3725.3,2.23353]
[1754346350261,18.639,3725.4,3725.3,2.48583]
[1754346350662,3.2078,3725.9,3725.7,0.53677]
[1754346350862,3.4478,3725.9,3725.8,1.949]
[1754346351059,22.0868,3725.9,3725.8,1.949]
[1754346351461,22.8614,3725.9,3725.8,1.949]
[1754346351662,23.4793,3725.9,3725.8,1.949]
[1754346352468,1.3729,3725.7,3725.6,0.53677]
[1754346352661,1.6325,3725.7,3725.6,0.53677]
[1754346353066,1.6325,3725.7,3725.6,2.13127]
[1754346353369,1.6325,3725.7,3725.6,2.48577]
[1754346353766,3.2078,3725.9,3725.8,0.53675]
[1754346354070,22.0868,3725.9,3725.8,2.48575]
[1754346354468,0.24,3725.4,3725.3,2.48583]
[1754346354659,18.879,3725.4,3725.3,2.48583]
[1754346356579,20.2715,3725.4,3725.3,0.82353]
[1754346357077,20.2715,3725.4,3725.3,0.53683]
[1754346357476,20.2715,3725.4,3725.3,1.07583]
[1754346357778,20.2715,3725.4,3725.3,2.13133]
[1754346358174,20.2715,3725.4,3725.3,2.48583]
[1754346358677,0.53683,3725.3,3725.2,0.53683]
[1754346358979,2.16933,3725.3,3725.2,0.53683]
[1754346359182,0.7494,3725.0,3724.9,0.7284]
[1754346359478,19.1278,3725.0,3724.9,2.48588]
[1754346359678,20.2705,3725.0,3724.9,2.48588]
[1754346359875,20.2705,3725.0,3724.9,1.5945]
[1754346360080,1.6325,3724.9,3724.8,0.53689]
[1754346360477,1.6325,3724.9,3724.8,0.82359]
[1754346360677,1.6325,3724.9,3724.8,1.07589]
[1754346360873,1.6325,3724.9,3724.8,1.45379]
[1754346362780,1.6325,3724.9,3724.8,0.91479]
[1754346363080,1.6325,3724.9,3723.6,3.53652114]
[1754346363081,0.537,3724.1,3723.6,3.53652114]
[1754346363287,20.1547,3724.0,3723.7,0.53705]
[1754346363479,20.1547,3724.0,3723.6,0.3631]
[1754346363682,20.1547,3724.0,3723.9,0.81691545]
[1754346363886,20.1547,3724.0,3723.1,0.96133]
[1754346363887,1.34258,3723.9,3723.1,0.3631]
[1754346364081,0.53713,3723.2,3723.1,0.3631]
[1754346364380,0.53718,3722.9,3722.5,0.3507]
[1754346364581,3.2078,3723.3,3722.8,0.7749]
[1754346364881,3.2078,3723.3,3723.2,1.67513]
[1754346365081,21.8458,3723.3,3723.2,1.67513]
[1754346366083,18.638,3723.3,3723.2,1.67513]
[1754346366478,38.648,3723.5,3723.4,1.6751]
[1754346366778,57.289,3723.5,3723.4,0.9002]
[1754346366982,57.289,3723.5,3723.4,0.5371]
[1754346367184,57.289,3723.5,3723.3,0.53711]
[1754346367485,57.289,3723.5,3723.3,0.90021]
[1754346367686,57.8261,3723.5,3723.3,0.3631]
[1754346367880,57.8261,3723.5,3723.3,0.90021]
[1754346368081,57.289,3723.5,3723.3,0.90021]
[1754346368286,38.648,3723.5,3723.4,0.7138]
[1754346368485,57.289,3723.5,3723.4,0.7138]
[1754346368683,57.289,3723.5,3723.3,0.53711]
[1754346368882,57.289,3723.5,3723.1,0.3631]
[1754346369082,57.8261,3723.5,3723.3,0.3631]
[1754346369288,57.289,3723.5,3723.4,0.9002]
[1754346369582,57.291,3723.5,3723.4,1.9089]
[1754346370386,38.648,3723.5,3723.4,1.9089]
[1754346370586,57.291,3723.5,3723.4,1.9089]
[1754346370779,38.648,3723.5,3723.4,1.9089]
[1754346370979,38.648,3723.5,3722.6,3.2078]
[1754346370980,3.2078,3724.1,3724.0,1.67501]
[1754346371185,21.8508,3724.1,3724.0,1.67501]
[1754346372291,0.53706,3723.8,3723.7,0.3631]
[1754346372484,0.53709,3723.5,3723.4,0.7138]
[1754346372791,3.74486,3723.7,3723.5,1.25089]
[1754346372990,18.645,3723.6,3723.5,1.67509]
[1754346376192,18.645,3723.6,3723.5,2.44599]
[1754346378393,3.2078,3724.1,3724.0,1.67102]
[1754346378590,21.8528,3724.1,3724.0,2.44592]
[1754346378990,21.8745,3724.1,3724.0,1.9089]
[1754346379587,21.8754,3724.1,3724.0,1.4847]
[1754346379786,21.8528,3724.1,3724.0,1.9089]
[1754346380490,18.645,3724.1,3724.0,1.9089]
[1754346381387,18.6676,3724.1,3724.0,1.4847]
[1754346381597,0.53701,3724.0,3723.8,0.53703]
[1754346381895,0.0226,3723.9,3723.8,0.90013]
[1754346382895,0.0226,3723.9,3723.8,2.02173]
[1754346383089,0.0082,3723.9,3723.8,2.44593]
[1754346383290,21.8528,3724.1,3724.0,1.30792]
[1754346383495,21.8528,3724.1,3724.0,2.44592]
[1754346385099,18.645,3724.1,3724.0,2.44592]
[1754346386093,3.75295,3724.5,3724.4,1.48466]
[1754346386298,22.41135,3724.5,3724.4,2.44586]
[1754346386705,22.41135,3724.5,3724.4,2.02166]
[1754346386898,3.2304,3724.5,3724.4,2.02166]
[1754346387099,21.8518,3724.5,3724.4,2.44586]
[1754346388106,3.2078,3724.5,3724.4,2.44586]
[1754346388308,21.8744,3724.5,3724.4,2.44586]
[1754346388898,3.2304,3724.5,3724.4,2.44586]
[1754346389203,21.8744,3724.5,3724.4,2.44586]
[1754346390205,21.8518,3724.5,3724.4,2.44586]
[1754346391307,21.8498,3724.5,3724.4,2.44586]
[1754346392909,21.8507,3724.5,3724.4,2.44586]
[1754346393111,18.6429,3724.5,3724.4,2.44586]
[1754346394314,21.8507,3724.5,3724.4,1.4847]
[1754346394510,21.8507,3724.5,3724.4,0.3631]
[1754346395408,21.8507,3724.5,3724.4,0.7302]
[1754346395609,21.8507,3724.5,3724.4,0.9719]
[1754346396203,21.8478,3724.5,3724.4,1.9214]
[1754346396908,21.8478,3724.5,3724.4,0.3631]
[1754346397114,23.19018,3724.5,3724.1,0.3421]
[1754346397319,1.34241,3724.4,3723.5,0.8673]
[1754346397511,0.53702,3724.0,3723.3,2.39852114]
[1754346397707,3.2078,3723.7,3723.3,0.9509]
[1754346397907,18.64,3723.6,3723.4,0.3671]
[1754346398112,18.64,3723.6,3723.5,1.12088]
[1754346398418,18.64,3723.6,3723.5,2.43748]
[1754346398920,16.9634,3723.6,3723.5,2.43748]
[1754346399420,3.2078,3724.1,3724.0,2.43742]
[1754346399615,23.4323,3724.1,3724.0,2.43742]
[1754346399918,22.1302,3724.1,3724.0,1.24622]
[1754346400119,22.1302,3724.1,3724.0,2.43742]
[1754346400413,22.1302,3724.1,3723.3,1.101]
[1754346400414,0.2459,3723.4,3723.3,1.101]
[1754346400613,20.2245,3723.4,3723.3,2.00522]
[1754346401512,20.5812,3723.4,3723.3,1.40442]
[1754346401915,20.5812,3723.4,3723.3,1.12092]
[1754346402111,20.5812,3723.4,3723.3,0.53712]
[1754346402512,20.5812,3723.4,3723.3,0.87922]
[1754346402718,20.5812,3723.4,3723.3,1.48802]
[1754346402914,20.2245,3723.4,3723.3,0.53712]
[1754346403219,20.5812,3723.4,3723.3,1.72172]
[1754346403419,19.8594,3723.4,3723.3,2.43752]
[1754346404218,20.2245,3723.4,3723.3,2.00522]
[1754346404529,20.2245,3723.4,3723.3,2.43752]
[1754346404721,19.1683,3723.4,3723.3,0.53712]
[1754346404924,20.5812,3723.4,3723.3,0.53712]
[1754346405719,1.9412,3723.1,3723.0,0.87926]
[1754346405924,1.9412,3722.9,3722.8,0.3421]
[1754346406220,20.5812,3722.9,3722.8,0.87928]
[1754346406521,20.2245,3722.9,3722.8,1.72178]
[1754346406725,20.2245,3722.9,3722.8,2.00528]
[1754346406929,18.64,3722.9,3722.8,2.43758]
[1754346407424,20.2245,3722.9,3722.8,2.43758]
[1754346407626,20.5812,3722.9,3722.8,1.63818]
[1754346408015,20.2245,3722.9,3722.8,1.35468]
[1754346408221,20.5812,3722.9,3722.8,0.53718]
[1754346408623,20.5812,3722.9,3722.8,0.87928]
[1754346408925,20.5812,3722.9,3722.8,0.3421]
[1754346409128,23.789,3722.9,3722.8,0.3421]
[1754346411624,23.789,3722.9,3722.5,0.3421]
[1754346411625,2.47842,3722.6,3722.5,0.3421]
[1754346411823,21.11942,3722.6,3722.5,0.3421]
[1754346412127,1.0952,3723.1,3723.0,0.7589]
[1754346412328,19.7362,3723.1,3723.0,1.5583]
[1754346412524,20.2255,3723.1,3723.0,1.9004]
[1754346412719,19.8604,3723.1,3723.0,1.9004]
[1754346413125,19.6145,3723.1,3723.0,1.9004]
[1754346413320,19.8604,3723.1,3723.0,1.9004]
[1754346414927,20.2255,3723.1,3723.0,1.4681]
[1754346415122,20.5822,3723.1,3723.0,1.4681]
[1754346415331,2.11326,3723.0,3722.9,0.53718]
[1754346415630,2.03066,3723.0,3722.9,0.87928]
[1754346415830,2.47836,3723.0,3722.9,0.87928]
[1754346416035,1.5845,3723.0,3722.9,2.43758]
[1754346416427,1.5845,3723.0,3722.9,2.00528]
[1754346416627,1.9412,3723.0,3722.9,2.00528]
[1754346417127,1.5845,3723.0,3722.9,0.53718]
[1754346417329,2.47838,3722.9,3722.8,0.53718]
[1754346417628,21.11938,3722.9,3722.8,0.53718]
[1754346417932,21.11938,3722.9,3722.8,1.12098]
[1754346418326,21.11938,3722.9,3722.8,1.48808]
[1754346418528,18.641,3722.9,3722.8,2.43758]
[1754346419023,19.8604,3722.9,3722.8,1.9004]
[1754346419227,20.2255,3722.9,3722.8,1.9004]
[1754346419638,2.47839,3722.8,3722.7,0.8793]
[1754346419838,2.12171,3722.7,3722.6,2.00531]
[1754346420040,20.76271,3722.7,3722.6,2.00531]
[1754346420239,20.2255,3722.7,3722.6,2.43761]
[1754346421236,20.5822,3722.7,3722.6,1.63822]
[1754346421442,20.5822,3722.7,3722.6,2.00532]
[1754346421635,20.5822,3722.7,3722.6,2.44132]
[1754346421836,20.2255,3722.7,3722.6,2.44132]
[1754346422037,20.2255,3722.7,3722.6,1.9041]
[1754346423237,1.2194,3722.7,3722.6,1.562]
[1754346423541,3.2078,3722.9,3722.8,1.9488]
[1754346423741,21.8478,3722.9,3722.8,1.9488]
[1754346423942,22.1521,3722.9,3722.8,1.9488]
[1754346424437,21.8478,3722.9,3722.8,1.9488]
[1754346425536,0.53715,3723.1,3723.0,0.793]
[1754346425742,19.17715,3723.1,3723.0,1.9488]
[1754346426539,18.64,3723.1,3723.0,2.48594]
[1754346427139,18.64,3723.1,3723.0,1.9488]
[1754346427339,20.1822,3723.1,3723.0,1.3309]
[1754346427543,20.1822,3723.1,3723.0,1.5781]
[1754346427739,0.53714,3723.2,3723.1,2.48595]
[1754346427939,19.17714,3723.2,3723.1,2.48595]
[1754346428243,19.48144,3723.2,3723.1,2.48595]
[1754346428442,20.37514,3723.2,3723.1,1.9488]
[1754346428746,20.71934,3723.2,3723.1,1.9488]
[1754346429042,21.08834,3723.2,3723.1,1.5128]
[1754346429746,20.71934,3723.2,3723.1,1.9488]
[1754346430044,20.37514,3723.2,3723.1,1.9488]
[1754346430838,4.71473,3723.3,3723.2,2.48593]
[1754346431042,23.35273,3723.3,3723.2,2.48593]
[1754346431242,3.36361056,3723.3,3723.2,2.48593]
[1754346431443,21.8458,3723.3,3723.2,2.48593]
[1754346432237,22.3782,3723.3,3723.2,2.48593]
[1754346432442,23.91285921,3723.3,3723.2,0.3491]
[1754346432643,1.29773,3723.2,3723.1,0.53714]
[1754346432843,2.44836,3723.1,3723.0,1.13235]
[1754346433143,0.99348,3722.9,3722.8,0.78328]
[1754346433348,24.29318,3722.9,3722.8,0.5952]
[1754346433547,1.0696,3722.8,3722.7,0.5372]
[1754346433744,2.4484,3722.8,3722.7,0.5372]
[1754346434246,1.9112,3722.7,3722.6,1.50311]
[1754346434443,20.5482,3722.7,3722.6,1.5128]
[1754346437249,20.5482,3722.7,3722.6,1.9488]
[1754346437747,20.5482,3722.7,3722.6,1.5128]
[1754346438244,20.1792,3722.7,3722.4,0.53724]
[1754346438450,0.5373,3722.1,3722.0,0.5373]
[1754346438753,0.5373,3722.1,3721.6,5.04914572]
[1754346438754,2.01112,3721.9,3721.8,0.53733]
[1754346439049,1.9112,3721.7,3721.6,0.5952]
[1754346439250,23.755,3721.7,3721.6,0.5952]
[1754346440451,23.755,3721.7,3720.7,1.34373]
[1754346440452,0.3043,3721.1,3720.5,5.60632114]
[1754346440646,0.7417,3721.7,3721.6,1.5128]
[1754346440948,0.369,3721.0,3720.9,4.86e-06]
[1754346441154,18.637,3721.0,3720.9,4.86e-06]
[1754346441454,19.7666,3721.0,3720.9,0.59520486]
[1754346441751,20.5482,3721.0,3720.9,1.75056486]
[1754346441952,20.5482,3721.0,3720.9,1.21310486]
[1754346442353,18.9413,3721.0,3720.9,1.94880486]
[1754346442551,3.2078,3721.2,3721.1,1.9488]
[1754346442751,1.198,3721.6,3721.5,1.9488]
[1754346442946,3.2078,3721.7,3721.6,1.5997]
[1754346443146,21.8448,3721.7,3721.6,1.9488]
[1754346444252,3.2078,3722.3,3722.2,2.48608]
[1754346444458,21.8458,3722.3,3722.2,2.48608]
[1754346445257,3.2078,3722.3,3722.2,2.48608]
[1754346445458,21.8458,3722.3,3722.2,2.48608]
[1754346447055,4.4058,3723.1,3723.0,0.793]
[1754346447251,23.387,3723.1,3723.0,1.5128]
[1754346447453,23.387,3723.1,3723.0,1.9488]
[1754346449061,23.92415,3723.1,3723.0,1.5128]
[1754346449360,1.5422,3722.4,3722.3,2.48606]
[1754346449550,20.1792,3722.4,3722.3,2.48606]
[1754346450254,0.7606,3722.4,3722.3,2.48606]
[1754346450452,3.9684,3723.1,3723.0,2.04996]
[1754346450655,3.9684,3723.1,3722.5,1.1421]
[1754346450656,0.5324,3722.6,3722.5,1.1421]
[1754346450857,18.635,3722.6,3722.5,2.48603]
[1754346452054,0.53719,3722.9,3722.7,0.5372]
[1754346452256,20.1699,3722.8,3722.7,2.4632]
[1754346453557,20.1699,3722.8,3722.7,0.5372]
[1754346453763,1.8788,3722.7,3722.6,1.11821]
[1754346453961,1.5358,3722.7,3722.6,2.00261]
[1754346454157,1.5358,3722.7,3722.6,2.46321]
[1754346454356,20.1698,3722.7,3722.6,2.46321]
[1754346454554,2.41605,3722.5,3722.4,0.76955]
[1754346454758,2.41605,3722.5,3722.4,1.11825]
[1754346455161,2.41605,3722.5,3722.4,0.581]
[1754346455565,1.62886,3722.3,3722.1,0.53728]
[1754346455755,19.7256,3722.2,3722.1,0.53728]
[1754346455959,19.7256,3722.2,3722.1,0.88598]
[1754346456160,19.7256,3722.2,3722.1,0.581]
[1754346456161,20.5128,3722.2,3722.1,0.581]
[1754346457661,20.5128,3722.2,3722.1,0.9386]